fUST/lending_fUST_20251003
["ID","MTS","AMOUNT","RATE_DAILY","PERIOD"]
[388886732,1759469358835,166.18849815,0.00017972,2]
[388886776,1759469432310,-300.0,0.00018062,2]
[388886778,1759469432320,-300.0,0.00018062,2]
[388886779,1759469432329,-1200.0,0.00018062,2]
[388886781,1759469432338,-1116.22,0.00018063,3]
[388886783,1759469432347,-95.57494729,0.00018063,3]
[388886786,1759469432370,-462.53505271,0.00018063,3]
[388886788,1759469432379,-279.05,0.00018063,3]
[388886790,1759469432390,-837.18,0.00018063,3]
[388886792,1759469432399,-1200.0,0.00018063,2]
[388886793,1759469432410,-1000.0,0.00018063,2]
[388886794,1759469432418,-691.8034161,0.00018069,2]
[388886795,1759469432427,-500.0,0.00018069,2]
[388886796,1759469432436,-500.0,0.00018069,2]
[388886797,1759469432446,-500.0,0.0001807,2]
[388886798,1759469432455,-500.0,0.0001807,2]
[388886799,1759469432463,-1111.42,0.0001807,2]
[388886800,1759469432472,-1849.19,0.0001807,2]
[388886802,1759469432482,-679.92,0.0001807,2]
[388886804,1759469432491,-500.0,0.0001807,2]
[388886805,1759469432500,-500.0,0.0001807,2]
[388886807,1759469432509,-2824.07,0.0001807,2]
[388886809,1759469432519,-500.0,0.0001807,2]
[388886811,1759469432528,-166.01970308,0.0001807,2]
[388886813,1759469432537,-153.71376323,0.0001807,2]
[388886815,1759469432546,-500.0,0.0001807,2]
[388886817,1759469432555,-500.0,0.00018071,2]
[388886819,1759469432564,-353.88697868,0.00018071,2]
[388886821,1759469432573,-171.84963435,0.00018071,2]
[388886822,1759469432582,-500.0,0.00018071,2]
[388886823,1759469432591,-549.19,0.00018071,2]
[388886824,1759469432600,-500.0,0.00018071,2]
[388886825,1759469432609,-540.2,0.00018071,2]
[388886826,1759469432618,-1017.44,0.00018071,2]
[388886827,1759469432627,-1754.53,0.00018071,2]
[388886828,1759469432636,-500.0,0.00018071,2]
[388886830,1759469432645,-1212.51,0.00018071,2]
[388886832,1759469432654,-1594.02,0.00018071,2]
[388886834,1759469432663,-507.02,0.00018071,2]
[388886835,1759469432672,-500.0,0.00018071,2]
[388886836,1759469432682,-1098.23,0.00018071,2]
[388886837,1759469432691,-500.0,0.00018071,2]
[388886838,1759469432700,-934.76,0.00018071,2]
[388886839,1759469432710,-1862.57,0.00018071,2]
[388886840,1759469432719,-500.0,0.00018071,2]
[388886841,1759469432728,-151.0,0.00018071,2]
[388886842,1759469432736,-158.434414,0.00018071,2]
[388886843,1759469432745,-181.399321,0.00018071,2]
[388886844,1759469432754,-810.42,0.00018071,2]
[388886845,1759469432764,-1408.72,0.00018071,2]
[388886846,1759469432773,-500.0,0.00018071,2]
[388886847,1759469432782,-2836.56,0.00018071,2]
[388886848,1759469432791,-2537.02,0.00018071,2]
[388886849,1759469432800,-221.457344,0.00018071,2]
[388886850,1759469432809,-221.457344,0.00018071,2]
[388886851,1759469432817,-1740.17,0.00018071,2]
[388886852,1759469432826,-942.02,0.00018071,2]
[388886853,1759469432835,-151.0,0.00018071,2]
[388886854,1759469432844,-1050.86,0.00018071,2]
[388886855,1759469432852,-159.381931,0.00018071,2]
[388886856,1759469432861,-291.34087573,0.00018071,2]
[388886857,1759469432870,-158.401905,0.00018071,2]
[388886858,1759469432879,-158.401905,0.00018071,2]
[388886859,1759469432888,-158.401905,0.00018071,2]
[388886860,1759469432897,-158.401905,0.00018071,2]
[388886861,1759469432906,-158.401905,0.00018071,2]
[388886862,1759469432914,-158.401905,0.00018071,2]
[388886863,1759469432923,-158.401905,0.00018071,2]
[388886864,1759469432932,-158.401905,0.00018071,2]
[388886865,1759469432940,-158.401905,0.00018071,2]
[388886866,1759469432949,-158.401905,0.00018071,2]
[388886867,1759469432958,-158.401905,0.00018071,2]
[388886868,1759469432967,-158.401905,0.00018071,2]
[388886869,1759469432982,-500.0,0.00018071,2]
[388886870,1759469432992,-158.401905,0.00018071,2]
[388886871,1759469433000,-158.401905,0.00018071,2]
[388886872,1759469433010,-158.401905,0.00018071,2]
[388886873,1759469433027,-158.401905,0.00018071,2]
[388886874,1759469433038,-686.24,0.00018071,2]
[388886875,1759469433047,-500.0,0.00018071,2]
[388886876,1759469433057,-221.457344,0.00018071,2]
[388886877,1759469433075,-221.457344,0.00018071,2]
[388886878,1759469433084,-221.457344,0.00018071,2]
[388886879,1759469433093,-221.457344,0.00018071,2]
[388886880,1759469433105,-221.457344,0.00018071,2]
[388886881,1759469433115,-221.457344,0.00018071,2]
[388886883,1759469433124,-500.0,0.00018071,2]
[388886885,1759469433133,-1336.1,0.00018071,2]
[388886887,1759469433143,-151.0,0.00018071,2]
[388886889,1759469433152,-151.0,0.00018071,2]
[388886891,1759469433161,-151.0,0.00018071,2]
[388886893,1759469433171,-151.0,0.00018071,2]
[388886895,1759469433180,-285.48943498,0.00018071,2]
[388886897,1759469433189,-151.0,0.00018071,2]
[388886899,1759469433199,-175.061283,0.00018071,2]
[388886901,1759469433208,-500.0,0.00018071,2]
[388886903,1759469433217,-500.0,0.00018072,2]
[388886905,1759469433226,-500.0,0.00018072,2]
[388886908,1759469433246,-500.0,0.00018072,2]
[388886910,1759469433257,-455.04,0.00018072,2]
[388886912,1759469433268,-500.0,0.00018072,2]
[388886914,1759469433278,-645.72,0.00018072,2]
[388886916,1759469433288,-500.0,0.00018072,2]
[388886918,1759469433297,-424.81823772,0.00018072,2]
[388886919,1759469433307,-2378.72,0.00018072,2]
[388886920,1759469433317,-530.48,0.00018072,2]
[388886921,1759469433327,-1948.07,0.00018072,2]
[388886922,1759469433336,-500.0,0.00018072,2]
[388886923,1759469433345,-500.0,0.00018072,2]
[388886924,1759469433354,-2629.09,0.00018072,2]
[388886925,1759469433363,-500.0,0.00018072,2]
[388886926,1759469433372,-500.0,0.00018072,2]
[388886928,1759469433382,-967.11,0.00018072,2]
[388886930,1759469433392,-183.547546,0.00018072,2]
[388886932,1759469433402,-958.15,0.00018072,2]
[388886934,1759469433411,-500.0,0.00018072,2]
[388886936,1759469433421,-500.0,0.00018072,2]
[388886938,1759469433431,-1001.8,0.00018072,2]
[388886940,1759469433441,-594.39,0.00018072,2]
[388886942,1759469433451,-500.0,0.00018072,2]
[388886944,1759469433461,-151.0,0.00018072,2]
[388886946,1759469433471,-151.0,0.00018072,2]
[388886948,1759469433481,-151.0,0.00018072,2]
[388886950,1759469433491,-151.0,0.00018072,2]
[388886952,1759469433500,-555.71,0.00018072,2]
[388886954,1759469433510,-151.0,0.00018072,2]
[388886956,1759469433519,-151.0,0.00018072,2]
[388886958,1759469433529,-151.0,0.00018072,2]
[388886959,1759469433539,-160.825327,0.00018072,2]
[388886960,1759469433549,-151.0,0.00018072,2]
[388886961,1759469433558,-151.0,0.00018072,2]
[388886962,1759469433567,-151.0,0.00018072,2]
[388886963,1759469433577,-151.0,0.00018072,2]
[388886964,1759469433586,-246.676021,0.00018072,2]
[388886965,1759469433595,-402.65888751,0.00018072,2]
[388886966,1759469433610,-183.13111249,0.00018072,2]
[388886967,1759469433620,-216.57443685,0.00018072,2]
[388886968,1759469433630,-283.42556315,0.00018072,2]
[388886969,1759469433640,-694.95,0.00018072,2]
[388886970,1759469433649,-500.0,0.00018072,2]
[388886971,1759469433659,-500.0,0.00018072,2]
[388886972,1759469433668,-500.0,0.00018072,2]
[388886973,1759469433677,-152.418004,0.00018072,2]
[388886974,1759469433687,-531.98,0.00018072,2]
[388886975,1759469433696,-1246.44,0.00018072,2]
[388886976,1759469433706,-151.0,0.00018072,2]
[388886977,1759469433715,-151.0,0.00018072,2]
[388886978,1759469433725,-151.0,0.00018072,2]
[388886979,1759469433734,-151.0,0.00018072,2]
[388886980,1759469433744,-151.0,0.00018072,2]
[388886981,1759469433753,-151.0,0.00018072,2]
[388886982,1759469433762,-151.0,0.00018072,2]
[388886983,1759469433772,-151.0,0.00018072,2]
[388886984,1759469433782,-151.0,0.00018072,2]
[388886985,1759469433791,-151.0,0.00018072,2]
[388886986,1759469433800,-151.0,0.00018072,2]
[388886987,1759469433810,-151.0,0.00018072,2]
[388886988,1759469433819,-151.0,0.00018072,2]
[388886989,1759469433829,-151.0,0.00018072,2]
[388886990,1759469433838,-151.0,0.00018072,2]
[388886991,1759469433848,-151.755216,0.00018072,2]
[388886992,1759469433857,-151.0,0.00018072,2]
[388886993,1759469433867,-151.0,0.00018072,2]
[388886994,1759469433876,-161.63894,0.00018072,2]
[388886995,1759469433886,-500.0,0.00018072,2]
[388886996,1759469433896,-500.0,0.00018072,2]
[388886997,1759469433905,-151.0,0.00018072,2]
[388886998,1759469433914,-151.0,0.00018072,2]
[388886999,1759469433923,-151.0,0.00018072,2]
[388887000,1759469433932,-151.0,0.00018072,2]
[388887001,1759469433941,-1427.32,0.00018072,2]
[388887002,1759469433951,-151.0,0.00018072,2]
[388887003,1759469433961,-151.0,0.00018072,2]
[388887004,1759469433971,-151.0,0.00018072,2]
[388887005,1759469433984,-151.0,0.00018072,2]
[388887006,1759469433993,-151.0,0.00018072,2]
[388887007,1759469434002,-151.0,0.00018072,2]
[388887008,1759469434012,-151.0,0.00018072,2]
[388887009,1759469434021,-151.0,0.00018072,2]
[388887010,1759469434031,-156.206051,0.00018072,2]
[388887011,1759469434040,-1262.14,0.00018072,2]
[388887012,1759469434049,-673.9,0.00018072,2]
[388887013,1759469434058,-500.0,0.00018072,2]
[388887014,1759469434068,-2715.09,0.00018072,2]
[388887015,1759469434077,-500.0,0.00018072,2]
[388887016,1759469434087,-614.12,0.00018072,2]
[388887017,1759469434096,-593.81,0.00018072,2]
[388887018,1759469434106,-500.0,0.00018072,2]
[388887019,1759469434115,-500.0,0.00018072,2]
[388887020,1759469434124,-500.0,0.00018072,2]
[388887021,1759469434133,-577.54,0.00018072,2]
[388887022,1759469434142,-531.04,0.00018072,2]
[388887023,1759469434153,-500.0,0.00018072,2]
[388887024,1759469434162,-500.0,0.00018072,2]
[388887025,1759469434171,-898.0,0.00018072,2]
[388887026,1759469434179,-151.69287807,0.00018072,2]
[388887027,1759469434189,-500.0,0.00018072,2]
[388887028,1759469434198,-221.457344,0.00018072,2]
[388887029,1759469434207,-221.457344,0.00018072,2]
[388887030,1759469434216,-242.85094592,0.00018072,2]
[388887031,1759469434226,-500.0,0.00018072,2]
[388887032,1759469434242,-931.36,0.00018072,2]
[388887033,1759469434251,-794.81,0.00018072,2]
[388887034,1759469434261,-158.401905,0.00018072,2]
[388887035,1759469434271,-158.401905,0.00018072,2]
[388887036,1759469434279,-158.401905,0.00018072,2]
[388887037,1759469434290,-158.401901,0.00018072,2]
[388887038,1759469434300,-825.69,0.00018072,2]
[388887039,1759469434316,-500.0,0.00018072,2]
[388887040,1759469434326,-500.0,0.00018072,2]
[388887041,1759469434335,-500.0,0.00018072,2]
[388887042,1759469434345,-500.0,0.00018072,2]
[388887043,1759469434354,-500.0,0.00018072,2]
[388887044,1759469434363,-500.0,0.00018072,2]
[388887045,1759469434372,-500.0,0.00018072,2]
[388887046,1759469434381,-221.457344,0.00018072,2]
[388887047,1759469434390,-221.457344,0.00018072,2]
[388887048,1759469434399,-221.457344,0.00018072,2]
[388887049,1759469434408,-594.84,0.00018072,2]
[388887050,1759469434418,-221.457344,0.00018072,2]
[388887051,1759469434427,-221.457344,0.00018072,2]
[388887052,1759469434438,-221.457344,0.00018072,2]
[388887053,1759469434447,-221.457344,0.00018072,2]
[388887054,1759469434456,-221.457344,0.00018072,2]
[388887055,1759469434466,-221.457346,0.00018072,2]
[388887056,1759469434475,-500.0,0.00018073,2]
[388887057,1759469434484,-500.0,0.00018073,2]
[388887058,1759469434493,-500.0,0.00018073,2]
[388887059,1759469434502,-500.0,0.00018073,2]
[388887060,1759469434512,-500.0,0.00018073,2]
[388887061,1759469434521,-500.0,0.00018073,2]
[388887062,1759469434531,-500.0,0.00018073,2]
[388887063,1759469434540,-500.0,0.00018073,2]
[388887064,1759469434550,-538.02,0.00018073,2]
[388887065,1759469434559,-500.0,0.00018073,2]
[388887066,1759469434568,-536.76,0.00018073,2]
[388887067,1759469434578,-500.0,0.00018073,2]
[388887068,1759469434587,-500.0,0.00018073,2]
[388887069,1759469434596,-500.0,0.00018073,2]
[388887070,1759469434606,-500.0,0.00018073,2]
[388887071,1759469434615,-577.32643265,0.00018073,2]
[388887072,1759469434625,-500.0,0.00018073,2]
[388887073,1759469434635,-576.57,0.00018073,2]
[388887074,1759469434644,-500.0,0.00018073,2]
[388887075,1759469434653,-500.0,0.00018073,2]
[388887076,1759469434662,-500.0,0.00018073,2]
[388887077,1759469434672,-500.0,0.00018073,2]
[388887078,1759469434682,-500.0,0.00018073,2]
[388887079,1759469434691,-500.0,0.00018073,2]
[388887080,1759469434699,-500.0,0.00018073,2]
[388887081,1759469434708,-500.0,0.00018073,2]
[388887082,1759469434718,-500.0,0.00018073,2]
[388887083,1759469434727,-153.090065,0.00018073,2]
[388887084,1759469434736,-500.0,0.00018073,2]
[388887085,1759469434746,-500.0,0.00018073,2]
[388887086,1759469434755,-500.0,0.00018073,2]
[388887087,1759469434764,-500.0,0.00018073,2]
[388887088,1759469434775,-500.0,0.00018073,2]
[388887089,1759469434785,-500.0,0.00018073,2]
[388887090,1759469434794,-151.0,0.00018073,2]
[388887091,1759469434804,-202.924954,0.00018073,2]
[388887092,1759469434814,-500.0,0.00018073,2]
[388887093,1759469434823,-500.0,0.00018073,2]
[388887094,1759469434833,-500.0,0.00018073,2]
[388887095,1759469434842,-151.0,0.00018073,2]
[388887096,1759469434851,-766.55,0.00018073,2]
[388887097,1759469434861,-500.0,0.00018073,2]
[388887098,1759469434870,-500.0,0.00018073,2]
[388887099,1759469434879,-500.0,0.00018073,2]
[388887100,1759469434889,-500.0,0.00018073,2]
[388887101,1759469434898,-500.0,0.00018073,2]
[388887102,1759469434907,-500.0,0.00018073,2]
[388887103,1759469434916,-500.0,0.00018073,2]
[388887104,1759469434925,-500.0,0.00018073,2]
[388887105,1759469434935,-607.11,0.00018073,2]
[388887106,1759469434944,-500.0,0.00018073,2]
[388887107,1759469435197,-500.0,0.00018073,2]
[388887108,1759469435207,-500.0,0.00018073,2]
[388887109,1759469435217,-500.0,0.00018073,2]
[388887110,1759469435226,-151.0,0.00018073,2]
[388887111,1759469435236,-849.65,0.00018073,2]
[388887112,1759469435245,-506.67,0.00018073,2]
[388887113,1759469435255,-178.73,0.00018073,2]
[388887114,1759469435264,-500.0,0.00018073,2]
[388887115,1759469435274,-500.0,0.00018073,2]
[388887116,1759469435283,-500.0,0.00018073,2]
[388887117,1759469435292,-591.43,0.00018073,2]
[388887118,1759469435302,-611.17,0.00018073,2]
[388887119,1759469435311,-1253.08,0.00018073,2]
[388887120,1759469435321,-500.0,0.00018073,2]
[388887121,1759469435331,-7255.68,0.00018073,2]
[388887122,1759469435341,-151.0,0.00018073,2]
[388887123,1759469435351,-813.93,0.00018073,2]
[388887124,1759469435360,-1140.0,0.00018073,2]
[388887125,1759469435371,-1036.71,0.00018073,2]
[388887126,1759469435381,-151.0,0.00018073,2]
[388887127,1759469435391,-151.0,0.00018073,2]
[388887128,1759469435400,-4203.86,0.00018073,2]
[388887129,1759469435410,-500.0,0.00018073,2]
[388887130,1759469435419,-500.0,0.00018073,2]
[388887131,1759469435429,-151.0,0.00018073,2]
[388887132,1759469435439,-500.0,0.00018073,2]
[388887133,1759469435448,-500.0,0.00018073,2]
[388887134,1759469435457,-500.0,0.00018073,2]
[388887135,1759469435467,-1237.22,0.00018073,2]
[388887136,1759469435477,-500.0,0.00018073,2]
[388887137,1759469435486,-4463.85,0.00018073,2]
[388887138,1759469435495,-500.0,0.00018073,2]
[388887139,1759469435505,-720.02,0.00018073,2]
[388887140,1759469435515,-500.0,0.00018073,2]
[388887141,1759469435524,-1540.53,0.00018073,2]
[388887142,1759469435534,-891.3,0.00018073,2]
[388887143,1759469435543,-500.0,0.00018073,2]
[388887144,1759469435552,-500.0,0.00018073,2]
[388887145,1759469435562,-500.0,0.00018073,2]
[388887146,1759469435571,-1056.82,0.00018073,2]
[388887147,1759469435581,-500.0,0.00018073,2]
[388887148,1759469435590,-151.0,0.00018073,2]
[388887149,1759469435599,-152.15877733,0.00018073,2]
[388887150,1759469435609,-191.04958073,0.00018073,2]
[388887151,1759469435618,-211.70433899,0.00018073,2]
[388887152,1759469435628,-151.0,0.00018073,2]
[388887153,1759469435638,-500.0,0.00018073,2]
[388887154,1759469435647,-500.0,0.00018073,2]
[388887155,1759469435656,-577.13,0.00018073,2]
[388887156,1759469435666,-1923.68,0.00018073,2]
[388887157,1759469435675,-864.29,0.00018073,2]
[388887158,1759469435685,-500.0,0.00018073,2]
[388887159,1759469435694,-500.0,0.00018073,2]
[388887160,1759469435705,-1532.99061862,0.00018073,2]
[388887161,1759469435947,-246.03938138,0.00018073,2]
[388887162,1759469435957,-197.52272252,0.00018073,2]
[388887198,1759469438335,-500.0,0.00018069,2]
[388887199,1759469438345,-203.0058698,0.0001807,2]
[388887410,1759469443434,-346.27761534,0.0001807,2]
[388887412,1759469443444,-193.15005869,0.0001807,2]
[388888362,1759469491302,5184.0,0.0001787,2]
[388888363,1759469690146,418.540552,0.00017071,2]
[388888364,1759469691686,19903.0,0.00028767,120]
[388888365,1759469748919,1099.76,0.00028767,120]
[388888379,1759469913073,168.0,0.00017787,2]
[388888396,1759470065720,235.06541182,0.00018018,2]
[388888397,1759470170068,157.08345345,0.00017967,2]
[388888414,1759470289797,250.0,0.00017866,2]
[388888424,1759470632711,-168.0,0.00018055,2]
[388888425,1759470632721,-1000.0,0.00018055,2]
[388888426,1759470632735,-461.35,0.00018058,3]
[388888427,1759470632750,-230.68,0.00018058,3]
[388888428,1759470632761,-151.20300195,0.00018058,2]
[388888429,1759470632771,-255.94518844,0.00018058,2]
[388888430,1759470632780,-250.0,0.00018058,2]
[388888431,1759470632790,-250.0,0.00018058,2]
[388888432,1759470632799,-250.0,0.00018058,2]
[388888433,1759470632808,-250.0,0.00018058,2]
[388888434,1759470632818,-8721.56094786,0.00018059,2]
[388888435,1759470632829,-709.31664277,0.00018059,2]
[388888534,1759470643122,-1929.26402892,0.00018059,2]
[388888726,1759470646553,-14677.22352154,0.00018059,2]
[388890115,1759470941994,504.43302043,0.00017169,2]
[388890116,1759470943335,2015.71434964,0.00017169,2]
[388890117,1759470973411,157.08345345,0.0001796,2]
[388890120,1759471185772,319.0,0.00017693,2]
[388890121,1759471214585,1353.75,0.00016438,2]
[388890123,1759471242509,3621.39869803,0.00017169,2]
[388890124,1759471290228,1001.862,0.00018007,2]
[388890125,1759471303962,430.873,0.00018007,2]
[388890127,1759471391248,157.08345345,0.00017957,2]
[388890128,1759471395659,168.0,0.00017694,2]
[388890129,1759471408691,168.0,0.00017823,2]
[388890130,1759471414680,102.812025,0.00017901,2]
[388890131,1759471414708,65.187975,0.00017901,2]
[388890132,1759471417692,168.0,0.00017699,2]
[388890133,1759471505711,600.0,0.00017715,2]
[388890134,1759471506083,600.0,0.00017899,2]
[388890138,1759471582408,182.51795148,0.00017956,2]
[388890141,1759471612337,439.64638269,0.0001796,2]
[388890142,1759471614303,439.64638268,0.0001803,2]
[388890145,1759471662834,222.0,0.00028767,120]
[388890147,1759471807490,600.0,0.00017715,2]
[388890148,1759471807853,928.51134884,0.00017899,2]
[388890152,1759471832830,-960.48203222,0.00018053,2]
[388890153,1759471832842,-239.51796778,0.00018053,2]
[388890154,1759471832851,-125.04928497,0.00018053,2]
[388890155,1759471832906,-874.95071503,0.00018053,2]
[388890156,1759471832915,-165.62308377,0.00018053,2]
[388890206,1759471838574,-1034.37691623,0.00018053,2]
[388890207,1759471838584,-300.0,0.00018053,2]
[388890208,1759471838594,-300.0,0.00018053,2]
[388890209,1759471838604,-300.0,0.00018053,2]
[388890210,1759471838614,-288.0,0.00018053,2]
[388890211,1759471838624,-500.0,0.00018053,2]
[388890213,1759471838634,-500.0,0.00018053,2]
[388890215,1759471838643,-620.25405756,0.00018053,2]
[388890216,1759471838652,-500.0,0.00018053,2]
[388890217,1759471838661,-500.0,0.00018053,2]
[388890218,1759471838671,-640.57962295,0.00018053,2]
[388890219,1759471838680,-500.0,0.00018053,2]
[388890220,1759471838690,-500.0,0.00018053,2]
[388890221,1759471838700,-500.0,0.00018053,2]
[388890222,1759471838709,-536.55661554,0.00018053,2]
[388890224,1759471838723,-500.0,0.00018053,2]
[388890226,1759471838734,-500.0,0.00018053,2]
[388890227,1759471838744,-207.06784627,0.00018053,2]
[388890228,1759471838755,-500.0,0.00018053,2]
[388890229,1759471838765,-500.0,0.00018053,2]
[388890230,1759471838776,-191.72179437,0.00018053,2]
[388890231,1759471838786,-584.20990481,0.00018053,2]
[388890232,1759471838797,-500.0,0.00018053,2]
[388890233,1759471838807,-500.0,0.00018053,2]
[388890234,1759471838817,-181.36889707,0.00018053,2]
[388890235,1759471838833,-500.0,0.00018053,2]
[388890236,1759471838844,-500.0,0.00018053,2]
[388890237,1759471838854,-500.0,0.00018053,2]
[388890238,1759471838863,-500.0,0.00018053,2]
[388890239,1759471838874,-183.56326151,0.00018053,2]
[388890240,1759471838884,-500.0,0.00018053,2]
[388890241,1759471838895,-500.0,0.00018053,2]
[388890242,1759471838905,-500.0,0.00018053,2]
[388890243,1759471838915,-8237.27848328,0.00018054,2]
[388890244,1759471838928,-351.91826975,0.00018054,2]
[388890795,1759471951402,263.78782964,0.0001796,2]
[388890796,1759471953406,263.7878296,0.0001803,2]
[388890797,1759471960907,1298.89462492,0.00017958,2]
[388890798,1759472007168,280.2,0.00018,2]
[388890799,1759472021814,182.51795147,0.00017956,2]
[388890800,1759472023256,322.0,0.00017922,2]
[388890801,1759472037728,183.672056,0.00017056,2]
[388890802,1759472101502,800.0,0.00017964,2]
[388890804,1759472161826,800.0,0.00017993,2]
[388890805,1759472161859,800.0,0.00017949,2]
[388890806,1759472218466,182.51795147,0.00017953,2]
[388890807,1759472287791,355.89645229,0.00017169,2]
[388890808,1759472292592,158.27269776,0.00017958,2]
[388890809,1759472292728,84.95256616,0.00018028,2]
[388890810,1759472292753,73.3201316,0.00018028,2]
[388890812,1759472403528,182.51795147,0.00017953,2]
[388890826,1759472461579,800.0,0.00017786,2]
[388890827,1759472521762,800.0,0.00017978,2]
[388890828,1759472521800,800.0,0.00017937,2]
[388890829,1759472581552,800.0,0.00017933,2]
[388890830,1759472589977,583.55871783,0.00017169,2]
[388890831,1759472591581,2331.90063646,0.00017169,2]
[388890833,1759472640042,158.27269776,0.00017953,2]
[388890834,1759472701687,800.0,0.00017832,2]
[388890835,1759472708807,166.0,0.00018042,2]
[388890836,1759472710083,500.0,0.00018042,2]
[388890837,1759472716351,250.0,0.00018042,2]
[388890838,1759472716997,357.71855151,0.00018042,2]
[388890840,1759472730395,500.0,0.00018042,2]
[388890847,1759472881784,800.0,0.00017855,2]
[388890848,1759472881832,96.72131337,0.00017932,2]
[388890849,1759472881859,703.27868663,0.00017932,2]
[388890850,1759472881914,800.0,0.00017967,2]
[388890851,1759472881957,800.0,0.00017883,2]
[388890852,1759472881989,665.0204423,0.00017784,2]
[388890855,1759472972840,158.27269776,0.00017953,2]
[388890856,1759472993840,2442.43,0.00018043,3]
[388890858,1759473004510,1221.22,0.00018043,3]
[388890859,1759473007934,1000.0,0.00017051,2]
[388890861,1759473015129,610.61,0.00018043,3]
[388890862,1759473015950,201.18,0.00018044,2]
[388890864,1759473026195,305.3,0.00018043,3]
[388890865,1759473027699,254.98531796,0.00017951,2]
[388890875,1759473031944,-417.16503418,0.00018046,2]
[388890876,1759473031957,-582.83496582,0.00018046,2]
[388890877,1759473031966,-300.0,0.00018046,2]
[388890878,1759473031976,-1106.47767842,0.00018046,2]
[388890879,1759473031987,-93.52232158,0.00018046,2]
[388890880,1759473031997,-294.0,0.00018046,2]
[388890881,1759473032006,-835.0,0.00018047,2]
[388890882,1759473032016,-206.02276604,0.0001805,2]
[388890883,1759473032031,-251.14753555,0.0001805,2]
[388890884,1759473032040,-358.96545127,0.0001805,2]
[388890885,1759473032052,-141.03454873,0.0001805,2]
[388890887,1759473032061,-501.39431625,0.0001805,2]
[388890889,1759473032074,-500.0,0.0001805,2]
[388890891,1759473032084,-189.67420514,0.0001805,2]
[388890893,1759473032094,-176.02332276,0.0001805,2]
[388890894,1759473032104,-186.81876634,0.0001805,2]
[388890895,1759473032115,-520.39591795,0.0001805,2]
[388890896,1759473032124,-26667.53287689,0.00018051,2]
[388890897,1759473032134,-500.0,0.00018051,2]
[388890898,1759473032143,-500.0,0.00018051,2]
[388890899,1759473032153,-500.0,0.00018051,2]
[388890900,1759473032163,-500.0,0.00018051,2]
[388890901,1759473032175,-500.0,0.00018051,2]
[388890902,1759473032185,-500.0,0.00018051,2]
[388890903,1759473032194,-459.38241605,0.00018051,2]
[388890904,1759473032203,-500.0,0.00018051,2]
[388890905,1759473032213,-500.0,0.00018051,2]
[388890906,1759473032222,-500.0,0.00018051,2]
[388890907,1759473032231,-1921.86228288,0.00018051,2]
[388890908,1759473036610,152.65,0.00018043,3]
[388890934,1759473037830,-500.0,0.0001805,2]
[388890935,1759473037841,-83.56265586,0.0001805,2]
[388890936,1759473037852,-416.43734414,0.0001805,2]
[388890937,1759473037861,-1228.62771712,0.00018051,2]
[388890938,1759473037871,-1692.54670821,0.00018051,2]
[388890943,1759473039894,-118.20329179,0.00018051,2]
[388890944,1759473039904,-500.0,0.00018051,2]